Workbook

Sheet Sample
B1: Equity Valuation Models: FCFF, FCFE, and DDM
B5: Company Name: | C5: Ticker: | D5: Stock Price:
B6: ABC Corp. | C6: ABC | D6: 59.51
H7: Estimates
B8: Income Statement Items | C8: =D8-1 -> 2019 | D8: 2020 | E8: 2021 | F8: =G8-1 -> 2022 | G8: =YEAR(TODAY())-1 -> 2023 | H8: =G8+1 -> 2024 | I8: =H8+1 -> 2025 | J8: 2026 | K8: 2027 | L8: 2028
B9: Revenue | C9: 37266 | D9: 33014 | E9: 38655 | F9: 43004 | G9: 45754 | H9: =G9*1.06 -> 48499.24 | I9: =H9*1.06 -> 51409.1944 | J9: 54493.74606 | K9: 57763.37083 | L9: 61229.17308
B10: % YOY Growth Rate | D10: =(D9-C9)/C9 -> -0.1140986422 | E10: =(E9-D9)/D9 -> 0.1708669049 | F10: 0.1125080843 | G10: 0.06394753976 | H10: 0.06 | I10: 0.06 | J10: 0.06 | K10: 0.06 | L10: 0.06
B11: Cost of Revenues | C11: 14619 | D11: 14619 | E11: 15357 | F11: 18000 | G11: 18520 | H11: =H9*0.415 -> 20127.1846 | I11: =I9*0.415 -> 21334.81568 | J11: 22614.90462 | K11: 23971.79889 | L11: 25410.10683
B12: % of Revenues | D12: =D11/D9 -> 0.4428121403 | E12: =E11/E9 -> 0.3972836632 | F12: 0.4185657148 | G12: 0.4047733531 | H12: 0.415 | I12: 0.415 | J12: 0.415 | K12: 0.415 | L12: 0.415
B13: Gross Profit | C13: =C9-C11 -> 22647 | D13: 18395 | E13: =E9-E11 -> 23298 | F13: 25004 | G13: 27234 | H13: 28372.0554 | I13: 30074.37872 | J13: 31878.84145 | K13: 33791.57193 | L13: 35819.06625
B14: % Gross Margin | C14: =C13/C9 -> 0.6077121237 | D14: =D13/D9 -> 0.5571878597 | E14: 0.6027163368 | F14: 0.5814342852 | G14: 0.5952266469 | H14: 0.585 | I14: 0.585 | J14: 0.585 | K14: 0.585 | L14: 0.585
B15: Operating Expenses | C15: 12016 | D15: 9589 | E15: 11865 | F15: 12664 | G15: 13921 | H15: =H9*0.3 -> 14549.772 | I15: =I9*0.3 -> 15422.75832 | J15: 16348.12382 | K15: 17329.01125 | L15: 18368.75192
B16: % of Revenues | C16: =C15/C9 -> 0.3224386841 | D16: =D15/D9 -> 0.2904525353 | E16: =E15/E9 -> 0.3069460613 | F16: 0.294484234 | G16: 0.3042575513 | H16: 0.3 | I16: 0.3 | J16: 0.3 | K16: 0.3 | L16: 0.3
B17: Operating Income or EBIT | C17: =C13-C15 -> 10631 | D17: =D13-D15 -> 8806 | E17: =E13-E15 -> 11433 | F17: =F13-F15 -> 12340 | G17: =G13-G15 -> 13313 | H17: =H13-H15 -> 13822.2834 | I17: 14651.6204 | J17: 15530.71763 | K17: 16462.56069 | L17: 17450.31433
B18: % Operating Profit Margin | C18: =C17/C9 -> 0.2852734396 | D18: 0.2667353244 | E18: 0.2957702755 | F18: 0.2869500512 | G18: 0.2909690956 | H18: 0.285 | I18: 0.285 | J18: 0.285 | K18: 0.285 | L18: 0.285
B19: Other Expenses (Gains) | C19: =-(C26-C17+C21+C23) -> -473 | D19: -1989 | E19: -2280 | F19: 361 | G19: -62 | H19: -969.9848 | I19: -1028.183888 | J19: -1089.874921 | K19: -1155.267417 | L19: -1224.583462
B20: % of Revenues | C20: =C19/C13 -> -0.02088576853 | D20: =D19/D13 -> -0.1081272085 | E20: =E19/E13 -> -0.09786247747 | F20: =F19/F13 -> 0.01443768997 | G20: =G19/G13 -> -0.002276566057 | H20: =H19/H13 -> -0.03418803419 | I20: =I19/I13 -> -0.03418803419 | J20: =J19/J13 -> -0.03418803419 | K20: =K19/K13 -> -0.03418803419 | L20: =L19/L13 -> -0.03418803419
B21: Net Interest Expense (Income) | C21: 383 | D21: 1067 | E21: 1321 | F21: 322 | G21: 412 | H21: =H9*0.02 -> 969.9848 | I21: =I9*0.02 -> 1028.183888 | J21: 1089.874921 | K21: 1155.267417 | L21: 1224.583462
B22: % of Revenues | C22: =C21/C$9 -> 0.01027746471 | D22: =D21/D$9 -> 0.03231962198 | E22: =E21/E$9 -> 0.03417410426 | F22: 0.007487675565 | G22: 0.009004677187 | H22: 0.02 | I22: 0.02 | J22: 0.02 | K22: 0.02 | L22: 0.02
B23: Income Tax Expense | C23: 1801 | D23: 1981 | E23: 2621 | F23: 2115 | G23: 2249 | H23: =H9*0.055 -> 2667.4582 | I23: =I9*0.055 -> 2827.505692 | J23: =J9*0.055 -> 2997.156034 | K23: =K9*0.055 -> 3176.985396 | L23: 3367.604519
B24: % of Revenues | C24: =C23/C$9 -> 0.04832823485 | D24: =D23/D$9 -> 0.06000484643 | E24: =E23/E$9 -> 0.06780494115 | F24: =F23/F$9 -> 0.04918147149 | G24: =G23/G$9 -> 0.04915417231 | H24: =H23/H$9 -> 0.055 | I24: =I23/I$9 -> 0.055 | J24: =J23/J$9 -> 0.055 | K24: =K23/K$9 -> 0.055 | L24: =L23/L$9 -> 0.055
B25: Effective Tax Rate | C25: =C23/(C17-C19-C21) -> 0.1679880608 | D25: 0.2036389803 | E25: 0.2115074241 | F25: 0.181436047 | G25: 0.17349379 | H25: 0.1929824561 | I25: =I23/(I17-I19-I21) -> 0.1929824561 | J25: =J23/(J17-J19-J21) -> 0.1929824561 | K25: =K23/(K17-K19-K21) -> 0.1929824561 | L25: =L23/(L17-L19-L21) -> 0.1929824561
B26: Net Income | C26: 8920 | D26: 7747 | E26: 9771 | F26: 9542 | G26: 10714 | H26: =H9*0.23 -> 11154.8252 | I26: =I9*0.23 -> 11824.11471 | J26: 12533.56159 | K26: 13285.57529 | L26: 14082.70981
B27: % Net Profit Margin | C27: =C26/C9 -> 0.2393602748 | D27: 0.2346580239 | E27: 0.252774544 | F27: 0.2218863362 | G27: 0.2341653189 | H27: 0.23 | I27: 0.23 | J27: 0.23 | K27: 0.23 | L27: 0.23
H29: Estimates
B30: Statement of Cash Flow Items | C30: =D30-1 -> 2019 | D30: =E30-1 -> 2020 | E30: =F30-1 -> 2021 | F30: =G30-1 -> 2022 | G30: =YEAR(TODAY())-1 -> 2023 | H30: =G30+1 -> 2024 | I30: =H30+1 -> 2025 | J30: =I30+1 -> 2026 | K30: =J30+1 -> 2027 | L30: =K30+1 -> 2028
B31: Depreciation and Amortization | C31: 1365 | D31: 1536 | E31: 1452 | F31: 1260 | G31: 1128 | H31: =H9*0.035 -> 1697.4734 | I31: =I9*0.035 -> 1799.321804 | J31: =J9*0.035 -> 1907.281112 | K31: =K9*0.035 -> 2021.717979 | L31: =L9*0.035 -> 2143.021058
B32: % of Sales | C32: =C31/C$9 -> 0.03662856223 | D32: =D31/D$9 -> 0.04652571636 | E32: =E31/E$9 -> 0.03756305782 | F32: =F31/F$9 -> 0.02929960004 | G32: =G31/G$9 -> 0.0246535822 | H32: =H31/H$9 -> 0.035 | I32: =I31/I$9 -> 0.035 | J32: =J31/J$9 -> 0.035 | K32: =K31/K$9 -> 0.035 | L32: =L31/L$9 -> 0.035
B33: Capital Expenditures | C33: 2054 | D33: 1177 | E33: 1367 | F33: 1484 | G33: 1852 | H33: =H9*0.05 -> 2424.962 | I33: =I9*0.05 -> 2570.45972 | J33: =J9*0.05 -> 2724.687303 | K33: =K9*0.05 -> 2888.168541 | L33: =L9*0.05 -> 3061.458654
B34: % of Sales | C34: =C33/C$9 -> 0.05511726507 | D34: =D33/D$9 -> 0.03565154177 | E34: =E33/E$9 -> 0.03536411848 | F34: =F33/F$9 -> 0.03450841782 | G34: =G33/G$9 -> 0.04047733531 | H34: =H33/H$9 -> 0.05 | I34: =I33/I$9 -> 0.05 | J34: =J33/J$9 -> 0.05 | K34: =K33/K$9 -> 0.05 | L34: =L33/L$9 -> 0.05
H36: Estimates
B37: Balance Sheet Items | C37: =D37-1 -> 2019 | D37: =E37-1 -> 2020 | E37: =F37-1 -> 2021 | F37: =G37-1 -> 2022 | G37: =YEAR(TODAY())-1 -> 2023 | H37: =G37+1 -> 2024 | I37: =H37+1 -> 2025 | J37: =I37+1 -> 2026 | K37: =J37+1 -> 2027 | L37: =K37+1 -> 2028
B38: Total Current Assets | C38: 20411 | D38: 19240 | E38: 22545 | F38: 22591 | G38: 26732 | H38: =H9*0.565 -> 27402.0706 | I38: =I9*0.565 -> 29046.19484 | J38: =J9*0.565 -> 30788.96653 | K38: =K9*0.565 -> 32636.30452 | L38: =L9*0.565 -> 34594.48279
B39: % of Sales | C39: =C38/C$9 -> 0.5477110503 | D39: 0.5827830617 | E39: 0.5832363213 | F39: 0.5253232257 | G39: 0.5842549285 | H39: 0.565 | I39: 0.565 | J39: 0.565 | K39: 0.565 | L39: 0.565
B40: Cash and Equivalents | C40: 11185 | D40: 10914 | E40: 12626 | F40: 11631 | G40: 13663 | H40: =H9*0.305 -> 14792.2682 | I40: =I9*0.305 -> 15679.80429 | J40: =J9*0.305 -> 16620.59255 | K40: =K9*0.305 -> 17617.8281 | L40: =L9*0.305 -> 18674.89779
B41: % of Sales | C41: =C40/C$9 -> 0.3001395374 | D41: =D40/D$9 -> 0.3305870237 | E41: =E40/E$9 -> 0.3266330358 | F41: =F40/F$9 -> 0.2704632127 | G41: =G40/G$9 -> 0.2986187 | H41: =H40/H$9 -> 0.305 | I41: =I40/I$9 -> 0.305 | J41: =J40/J$9 -> 0.305 | K41: =K40/K$9 -> 0.305 | L41: =L40/L$9 -> 0.305
B42: Accounts payable | C42: 3804 | D42: 3517 | E42: 4602 | F42: 5307 | G42: 5590 | H42: =H9*0.115 -> 5577.4126 | I42: =I9*0.115 -> 5912.057356 | J42: =J9*0.115 -> 6266.780797 | K42: =K9*0.115 -> 6642.787645 | L42: =L9*0.115 -> 7041.354904
B43: % of Sales | C43: =C42/C$9 -> 0.1020769602 | D43: =D42/D$9 -> 0.1065305628 | E43: =E42/E$9 -> 0.1190531626 | F43: =F42/F$9 -> 0.1234071249 | G43: =G42/G$9 -> 0.1221751104 | H43: =H42/H$9 -> 0.115 | I43: =I42/I$9 -> 0.115 | J43: =J42/J$9 -> 0.115 | K43: =K42/K$9 -> 0.115 | L43: =L42/L$9 -> 0.115
B44: Accrued expenses | C44: 6005 | D44: 6079 | E44: 8534 | F44: 8937 | G44: 8524 | H44: =H9*0.19 -> 9214.8556 | I44: =I9*0.19 -> 9767.746936 | J44: =J9*0.19 -> 10353.81175 | K44: =K9*0.19 -> 10975.04046 | L44: =L9*0.19 -> 11633.54288
B45: % of Sales | C45: =C44/C$9 -> 0.1611388397 | D45: =D44/D$9 -> 0.1841340038 | E45: =E44/E$9 -> 0.2207735092 | F45: =F44/F$9 -> 0.2078178774 | G45: =G44/G$9 -> 0.1863006513 | H45: =H44/H$9 -> 0.19 | I45: =I44/I$9 -> 0.19 | J45: =J44/J$9 -> 0.19 | K45: =K44/K$9 -> 0.19 | L45: =L44/L$9 -> 0.19
B46: Other current non-debt liabilities | C46: 1222 | D46: 1222 | E46: 1173 | F46: 1164 | G46: 1005 | H46: =H9*0.03 -> 1454.9772 | I46: =I9*0.03 -> 1542.275832 | J46: =J9*0.03 -> 1634.812382 | K46: =K9*0.03 -> 1732.901125 | L46: =L9*0.03 -> 1836.875192
B47: % of Sales | C47: =C46/C$9 -> 0.03279128428 | D47: =D46/D$9 -> 0.03701459987 | E47: =E46/E$9 -> 0.03034536282 | F47: =F46/F$9 -> 0.02706724956 | G47: =G46/G$9 -> 0.02196529265 | H47: =H46/H$9 -> 0.03 | I47: =I46/I$9 -> 0.03 | J47: =J46/J$9 -> 0.03 | K47: =K46/K$9 -> 0.03 | L47: =L46/L$9 -> 0.03
B48: Net Working Capital | C48: =(C38-C40)-(C42+C44+C46) -> -1805 | D48: =(D38-D40)-(D42+D44+D46) -> -2492 | E48: -4390 | F48: -4448 | G48: -2050 | H48: =(H38-H40)-(H42+H44+H46) -> -3637.443 | I48: -3855.68958 | J48: -4087.030955 | K48: -4332.252812 | L48: -4592.187981
B49: % of Sales | C49: =C48/C$9 -> -0.0484355713 | D49: =D48/D$9 -> -0.07548312837 | E49: =E48/E$9 -> -0.1135687492 | F49: =F48/F$9 -> -0.1034322389 | G49: =G48/G$9 -> -0.04480482581 | H49: =H48/H$9 -> -0.075 | I49: =I48/I$9 -> -0.075 | J49: =J48/J$9 -> -0.075 | K49: =K48/K$9 -> -0.075 | L49: =L48/L$9 -> -0.075
B50: Δ Net Working Capital | D50: =D48-C48 -> -687 | E50: =E48-D48 -> -1898 | F50: -58 | G50: =G48-F48 -> 2398 | H50: =H48-G48 -> -1587.443 | I50: -218.24658 | J50: -231.3413748 | K50: -245.2218573 | L50: -259.9351687
B51: Debt and Leases - LT, ST, and Current | C51: =27537+1111+4253+281+10994 -> 44176 | D51: =27537+1300+2183+490+322 -> 31832 | E51: =40125+1161+3307+1338+310 -> 46241 | F51: =38053+1113+2373+399+341 -> 42279 | G51: =36660+1001+4557+1965+361 -> 44544 | H51: =H9*1.05 -> 50924.202 | I51: =I9*1.05 -> 53979.65412 | J51: 57218.43337 | K51: 60651.53937 | L51: 64290.63173
B52: % of Revenues | C52: =C51/C9 -> 1.185423711 | D52: =D51/D9 -> 0.9641970073 | E52: 1.196248868 | F52: 0.9831411032 | G52: 0.9735542248 | H52: 1.05 | I52: 1.05 | J52: 1.05 | K52: 1.05 | L52: 1.05
B53: Δ Net Debt | D53: =(D51-D40)-(C51-C40) -> -12073 | E53: =(E51-E40)-(D51-D40) -> 12697 | F53: -2967 | G53: 233 | H53: 5250.9338 | I53: 2167.916028 | J53: 2297.99099 | K53: 2435.870449 | L53: 2582.022676
H55: Estimates
B56: Other Items | C56: =D56-1 -> 2019 | D56: =E56-1 -> 2020 | E56: =F56-1 -> 2021 | F56: =G56-1 -> 2022 | G56: =YEAR(TODAY())-1 -> 2023 | H56: =G56+1 -> 2024 | I56: =H56+1 -> 2025 | J56: =I56+1 -> 2026 | K56: =J56+1 -> 2027 | L56: =K56+1 -> 2028
B57: Marginal Tax Rate | C57: 0.21 | D57: 0.21 | E57: 0.21 | F57: 0.21 | G57: 0.21 | H57: 0.21 | I57: 0.21 | J57: 0.21 | K57: 0.21 | L57: 0.21
B58: Dividends per Share | C58: 1.6 | D58: 1.64 | E58: 1.68 | F58: 1.76 | G58: 1.84 | H58: =G58*1.035 -> 1.9044 | I58: =H58*1.035 -> 1.971054 | J58: 2.04004089 | K58: 2.111442321 | L58: 2.185342802
B59: % YOY Growth Rate | D59: =(D58-C58)/C58 -> 0.025 | E59: =(E58-D58)/D58 -> 0.0243902439 | F59: 0.04761904762 | G59: 0.04545454545 | H59: 0.035 | I59: 0.035 | J59: 0.035 | K59: 0.035 | L59: 0.035
H61: Estimates
B62: Free Cash Flows to the Firm (Unlevered) | D62: =E62-1 -> 2020 | E62: =F62-1 -> 2021 | F62: =G62-1 -> 2022 | G62: =YEAR(TODAY())-1 -> 2023 | H62: =G62+1 -> 2024 | I62: =H62+1 -> 2025 | J62: =I62+1 -> 2026 | K62: =J62+1 -> 2027 | L62: =K62+1 -> 2028
B63: EBIT × (1-t) | D63: =D17*(1-D57) -> 6956.74 | E63: 9032.07 | F63: 9748.6 | G63: 10517.27 | H63: 10919.60389 | I63: 11574.78012 | J63: 12269.26693 | K63: 13005.42294 | L63: 13785.74832
B64: add Depreciation and Amortization | D64: =D31 -> 1536 | E64: =E31 -> 1452 | F64: 1260 | G64: 1128 | H64: 1697.4734 | I64: 1799.321804 | J64: 1907.281112 | K64: 2021.717979 | L64: 2143.021058
B65: less Capital Expenditures | D65: =D33 -> 1177 | E65: 1367 | F65: 1484 | G65: 1852 | H65: 2424.962 | I65: 2570.45972 | J65: 2724.687303 | K65: 2888.168541 | L65: 3061.458654
B66: less Change in NWC | D66: =D50 -> -687 | E66: -1898 | F66: -58 | G66: 2398 | H66: -1587.443 | I66: -218.24658 | J66: -231.3413748 | K66: -245.2218573 | L66: -259.9351687
B67: FCFF (Unlevered) | D67: =D63+D64-D65-D66 -> 8002.74 | E67: =E63+E64-E65-E66 -> 11015.07 | F67: =F63+F64-F65-F66 -> 9582.6 | G67: =G63+G64-G65-G66 -> 7395.27 | H67: =H63+H64-H65-H66 -> 11779.55829 | I67: =I63+I64-I65-I66 -> 11021.88878 | J67: =J63+J64-J65-J66 -> 11683.20211 | K67: =K63+K64-K65-K66 -> 12384.19424 | L67: =L63+L64-L65-L66 -> 13127.24589
B68: YOY Growth Rate % | E68: =(E67-D67)/D67 -> 0.3764123288 | F68: =(F67-E67)/E67 -> -0.1300463819 | G68: =(G67-F67)/F67 -> -0.2282605973 | H68: =(H67-G67)/G67 -> 0.5928503335 | I68: =(I67-H67)/H67 -> -0.06432070579 | J68: 0.06 | K68: 0.06 | L68: 0.06
H70: Estimates
B71: Free Cash Flows to Equity (Levered) | D71: =E71-1 -> 2020 | E71: =F71-1 -> 2021 | F71: =G71-1 -> 2022 | G71: =YEAR(TODAY())-1 -> 2023 | H71: =G71+1 -> 2024 | I71: =H71+1 -> 2025 | J71: =I71+1 -> 2026 | K71: =J71+1 -> 2027 | L71: =K71+1 -> 2028
B72: FCFF | D72: =D67 -> 8002.74 | E72: =E67 -> 11015.07 | F72: 9582.6 | G72: 7395.27 | H72: =H67 -> 11779.55829 | I72: 11021.88878 | J72: 11683.20211 | K72: 12384.19424 | L72: 13127.24589
B73: less Interest Expense × (1-t) | D73: =D21*(1-D57) -> 842.93 | E73: 1043.59 | F73: 254.38 | G73: 325.48 | H73: 766.287992 | I73: 812.2652715 | J73: 861.0011878 | K73: 912.6612591 | L73: 967.4209346
B74: add Change in Net Debt | D74: =D53 -> -12073 | E74: =E53 -> 12697 | F74: -2967 | G74: 233 | H74: =H53 -> 5250.9338 | I74: 2167.916028 | J74: 2297.99099 | K74: 2435.870449 | L74: 2582.022676
B75: FCFE (Levered) | D75: =D72-D73+D74 -> -4913.19 | E75: 22668.48 | F75: 6361.22 | G75: =G72-G73+G74 -> 7302.79 | H75: =H72-H73+H74 -> 16264.20409 | I75: =I72-I73+I74 -> 12377.53954 | J75: 13120.19191 | K75: 13907.40343 | L75: 14741.84763
B76: YOY Growth Rate % | E76: =(E75-D75)/D75 -> -5.61380081 | F76: -0.7193803907 | G76: 0.1480172042 | H76: =(H75-G75)/G75 -> 1.227121976 | I76: =(I75-H75)/H75 -> -0.2389704736 | J76: 0.06 | K76: 0.06 | L76: 0.06
B79: Inputs and Assumptions
B81: Expected Return of the Market | C81: 0.12 | E81: Total Debt | F81: =G51 -> 44544 | H81: EBITDA (Current Year) | I81: =G17+G64 -> 14441 | K81: Terminal Growth | L81: 0.02
B82: Beta | C82: 0.59 | E82: Unlevered Beta | F82: =C82/(1+(F84*(1-F86))) -> 0.2587946311 | H82: EBITDA (Terminal Year) | I82: =L17+L64 -> 19593.33538 | K82: D/D+E | L82: =0.618 -> 0.618
B83: Risk-free Rate | C83: 0.0531 | E83: Relevered Beta | F83: =F82*(1+(F85*(1-F86))) -> 0.59 | H83: Enterprise Value | I83: 288979 | K83: E/D+E | L83: =1-L82 -> 0.382
B84: Required Return by CAPM | C84: =C83+C82*(C81-C83) -> 0.092571 | E84: D/E | F84: 1.62 | H84: EV/EBITDA (Current Year) | I84: =I83/I81 -> 20.01101032 | K84: Cost of Debt | L84: 0.048
B85: Shares Outstanding | C85: 4323 | E85: Target D/E | F85: 1.62 | H85: EV/EBITDA (Terminal Year) | I85: 18 | K85: Cost of Equity | L85: =C83+F83*(C81-C83) -> 0.092571
B86: Current Stock Price | C86: =D6 -> 59.51 | E86: Marginal Tax Rate | F86: 0.21 | H86: Terminal Val., Exit Mult. | I86: =I82*I85 -> 352680.0369 | K86: WACC | L86: =L83*L85+L82*L84*(1-F86) -> 0.058796682
B89: Free Cash Flows to the Firm (Unlevered): Perpetual Growth
C90: 1 | D90: 2 | E90: 3 | F90: 4 | G90: 5
C91: =H8 -> 2024 | D91: =I8 -> 2025 | E91: 2026 | F91: 2027 | G91: 2028
B92: FCFF | C92: =H67 -> 11779.55829 | D92: =I67 -> 11021.88878 | E92: =J67 -> 11683.20211 | F92: =K67 -> 12384.19424 | G92: =L67 -> 13127.24589
B93: Terminal Value (FCFF) | G93: =(L67*(1+L81))/($L$86-L81) -> 345127.215
B94: PV of Cash Flow | C94: =SUM(C92:C93)/(1+$L$86)^C90 -> 11125.42048 | D94: =SUM(D92:D93)/(1+$L$86)^D90 -> 9831.751228 | E94: =SUM(E92:E93)/(1+$L$86)^E90 -> 9842.924973 | F94: =SUM(F92:F93)/(1+$L$86)^F90 -> 9854.111416 | G94: =SUM(G92:G93)/(1+$L$86)^G90 -> 269233.2839
B95: Sum of PV of Cash Flows | C95: =SUM(C94:G94) -> 309887.492
B96: Total Debt | C96: =-F81 -> -44544
B97: Equity Value | C97: =C95+C96 -> 265343.492
B98: Shares Outstanding | C98: =C85 -> 4323 | F98: Current Price | G98: =C86 -> 59.51
B99: Estimate of Value | C99: =C97/C98 -> 61.37948 | F99: Premium to Current | G99: =C99/G98-1 -> 0.03141455212
C102: Sensitivity Table
C103: Terminal Growth Rate
C104: =D104-0.0025 -> 0.015 | D104: =E104-0.0025 -> 0.0175 | E104: =L81 -> 0.02 | F104: =E104+0.0025 -> 0.0225 | G104: =F104+0.0025 -> 0.025
B105: =B106-0.005 -> 0.048796682 | C105: =(NPV($B105,$C$92,$D$92,$E$92,$F$92,$G$92+(($G$92*(1+C$104)/($B105-C$104))))-$F$81)/$C$98 -> 73.58126368 | D105: 79.51312258 | E105: 86.47493675 | F105: 94.76045674 | G105: 104.7868749
B106: =B107-0.005 -> 0.053796682 | C106: 62.67989512 | D106: 67.05148663 | E106: 72.06982677 | F106: 77.88990368 | G106: 84.72052703
B107: =L86 -> 0.058796682 | C107: 54.26943569 | D107: 57.60924551 | E107: 61.37948 | F107: 65.66907801 | G107: 70.59329423
B108: =B107+0.005 -> 0.063796682 | C108: 47.58414186 | D108: 50.2080807 | E108: 53.13157863 | F108: 56.40903937 | G108: 60.10888943
B109: =B108+0.005 -> 0.068796682 | C109: 42.1429519 | D109: 44.25111031 | E109: 46.57528324 | F109: 49.15046475 | G109: 52.01963903
B112: Free Cash Flows to the Firm (Unlevered): Exit Multiple
C113: 1 | D113: 2 | E113: 3 | F113: 4 | G113: 5
C114: =H8 -> 2024 | D114: =I8 -> 2025 | E114: 2026 | F114: 2027 | G114: 2028
B115: FCFF | C115: =H67 -> 11779.55829 | D115: =I67 -> 11021.88878 | E115: 11683.20211 | F115: 12384.19424 | G115: 13127.24589
B116: Terminal Value (Exit Mult.) | G116: =I86 -> 352680.0369
B117: PV of Cash Flow | C117: =SUM(C115:C116)/(1+$L$86)^C113 -> 11125.42048 | D117: =SUM(D115:D116)/(1+$L$86)^D113 -> 9831.751228 | E117: =SUM(E115:E116)/(1+$L$86)^E113 -> 9842.924973 | F117: =SUM(F115:F116)/(1+$L$86)^F113 -> 9854.111416 | G117: =SUM(G115:G116)/(1+$L$86)^G113 -> 274909.3362
B118: Sum of PV of Cash Flows | C118: =SUM(C117:G117) -> 315563.5443
B119: Total Debt | C119: =-F81 -> -44544
B120: Equity Value | C120: =C118+C119 -> 271019.5443
B121: Shares Outstanding | C121: =C85 -> 4323 | F121: Current Price | G121: =C86 -> 59.51
B122: Estimate of Value | C122: =C120/C121 -> 62.6924692 | F122: Premium to Current | G122: =C122/G121-1 -> 0.05347788935
C125: Sensitivity Table
C126: Exit Multiple
C127: =D127-1 -> 16 | D127: =E127-1 -> 17 | E127: =I85 -> 18 | F127: =E127+1 -> 19 | G127: =F127+1 -> 20
B128: =B129-0.005 -> 0.048796682 | C128: =(NPV($B128,$C$115,$D$115,$E$115,$F$115,$G$115+($I$82*C$127))-$F$81)/$C$121 -> 58.86130319 | D128: 62.43293443 | E128: 66.00456568 | F128: 69.57619692 | G128: 73.14782816
B129: =B130-0.005 -> 0.053796682 | C129: 57.35008001 | D129: 60.83777906 | E129: 64.32547811 | F129: 67.81317716 | G129: 71.30087621
B130: =L86 -> 0.058796682 | C130: 55.88022395 | D130: 59.28634657 | E130: 62.6924692 | F130: 66.09859182 | G130: 69.50471444
B131: =B130+0.005 -> 0.063796682 | C131: 54.45040374 | D131: 57.77722892 | E131: 61.1040541 | F131: 64.43087928 | G131: 67.75770446
B132: =B131+0.005 -> 0.068796682 | C132: 53.05933707 | D132: 56.30906986 | E132: 59.55880265 | F132: 62.80853544 | G132: 66.05826823
B135: Free Cash Flows to Equity (Levered)
C136: 1 | D136: 2 | E136: 3 | F136: 4 | G136: 5
C137: =H30 -> 2024 | D137: =I30 -> 2025 | E137: 2026 | F137: 2027 | G137: =L30 -> 2028
B138: FCFE | C138: =H75 -> 16264.20409 | D138: =I75 -> 12377.53954 | E138: =J75 -> 13120.19191 | F138: =K75 -> 13907.40343 | G138: =L75 -> 14741.84763
B139: Terminal Value (FCFE) | G139: =(L75*(1+L81))/($L$85-L81) -> 207199.6333
B140: PV of Cash Flow | C140: =SUM(C138:C139)/(1+$L$85)^C136 -> 14886.1759 | D140: =SUM(D138:D139)/(1+$L$85)^D136 -> 10368.95488 | E140: =SUM(E138:E139)/(1+$L$85)^E136 -> 10059.84249 | F140: =SUM(F138:F139)/(1+$L$85)^F136 -> 9759.945157 | G140: =SUM(G138:G139)/(1+$L$85)^G136 -> 142557.5211
B141: Sum of PV of Cash Flows | C141: =SUM(C140:G140) -> 187632.4396
B142: Shares Outstanding | C142: =C85 -> 4323 | F142: Current Price | G142: =C86 -> 59.51
B143: Estimate of Value | C143: =C141/C142 -> 43.40329391 | F143: Premium to Current | G143: =C143/G142-1 -> -0.2706554544
C146: Sensitivity Table
C147: Terminal Growth Rate
C148: =D148-0.0025 -> 0.015 | D148: =E148-0.0025 -> 0.0175 | E148: =L81 -> 0.02 | F148: =E148+0.0025 -> 0.0225 | G148: =F148+0.0025 -> 0.025
B149: =B150-0.005 -> 0.082571 | C149: =(NPV($B149,$C$138,$D$138,$E$138,$F$138,$G$138+(($G$138*(1+C$148)/($B149-C$148)))))/$C$142 -> 47.39628158 | D149: 48.80795198 | E149: 50.33242786 | F149: 51.98379325 | G149: 53.77857854
B150: =B151-0.005 -> 0.087571 | C150: 44.12589792 | D150: 45.3242234 | E150: 46.61122046 | F150: 47.99710928 | G150: 49.49374339
B151: =L85 -> 0.092571 | C151: 41.27772341 | D151: 42.30511599 | E151: 43.40329391 | F151: 44.57983363 | G151: 45.84343286
B152: =B151+0.005 -> 0.097571 | C152: 38.77504008 | D152: 39.66357275 | E152: 40.60937764 | F152: 41.61817656 | G152: 42.69647974
B153: =B152+0.005 -> 0.102571 | C153: 36.55865188 | D153: 37.33300416 | E153: 38.15424653 | F153: 39.02677103 | G153: 39.95553592
B156: Dividend Discount Model
C157: 1 | D157: 2 | E157: 3 | F157: 4 | G157: 5
C158: =H30 -> 2024 | D158: =I30 -> 2025 | E158: 2026 | F158: 2027 | G158: 2028
B159: Dividends | C159: =H58 -> 1.9044 | D159: =I58 -> 1.971054 | E159: =J58 -> 2.04004089 | F159: =K58 -> 2.111442321 | G159: =L58 -> 2.185342802
B160: Terminal Value | G160: =(G159*(1+L81))/(C84-L81) -> 30.71543259
B161: PV of Cash Flow | C161: =SUM(C159:C160)/(1+$C$84)^C157 -> 1.743044617 | D161: =SUM(D159:D160)/(1+$C$84)^D157 -> 1.651198117 | E161: =SUM(E159:E160)/(1+$C$84)^E157 -> 1.564191299 | F161: =SUM(F159:F160)/(1+$C$84)^F157 -> 1.481769143 | G161: =SUM(G159:G160)/(1+$C$84)^G157 -> 21.1328363
F163: Current Price | G163: =C86 -> 59.51
B164: Estimate of Value | C164: =SUM(C161:G161) -> 27.57303947 | F164: Premium to Current | G164: =C164/G163-1 -> -0.5366654432
C167: Sensitivity Table
C168: Terminal Growth Rate
C169: =D169-0.0025 -> 0.015 | D169: =E169-0.0025 -> 0.0175 | E169: =L81 -> 0.02 | F169: =E169+0.0025 -> 0.0225 | G169: =F169+0.0025 -> 0.025
B170: =B171-0.005 -> 0.082571 | C170: =(NPV($B170,$C$159,$D$159,$E$159,$F$159,$G$159+(($G$159*(1+C$169)/($B170-C$169))))) -> 30.13310789 | D170: 31.03776958 | E170: 32.01472208 | F170: 33.07299106 | G170: 34.22316994
B171: =B172-0.005 -> 0.087571 | C171: 28.03669361 | D171: 28.80463431 | E171: 29.62939973 | F171: 30.51753942 | G171: 31.47664966
B172: =$C$84 -> 0.092571 | C172: 26.2108786 | D172: 26.86927782 | E172: 27.57303947 | F172: 28.32701888 | G172: 29.13678992
B173: =B172+0.005 -> 0.097571 | C173: 24.6064977 | D173: 25.17590927 | E173: 25.78202345 | F173: 26.42850703 | G173: 27.11953206
B174: =B173+0.005 -> 0.102571 | C174: 23.18561463 | D174: 23.68185429 | E174: 24.20814322 | F174: 24.76729604 | G174: 25.36249023

Sheet Models
B1: Equity Valuation Models: FCFF, FCFE, and DDM
B5: Company Name: | C5: Ticker: | D5: Stock Price:
H7: Estimates
B8: Income Statement Items | C8: =D8-1 -> 2019 | D8: 2020 | E8: 2021 | F8: =G8-1 -> 2022 | G8: =YEAR(TODAY())-1 -> 2023 | H8: =G8+1 -> 2024 | I8: =H8+1 -> 2025 | J8: 2026 | K8: 2027 | L8: 2028
B9: Revenue
B10: % YOY Growth Rate | D10: =(D9-C9)/C9 ->  | E10: =(E9-D9)/D9 -> 
B11: Cost of Revenues
B12: % of Revenues | D12: =D11/D9 ->  | E12: =E11/E9 -> 
B13: Gross Profit | C13: =C9-C11 -> 0 | D13: 0 | E13: =E9-E11 -> 0 | F13: 0 | G13: 0 | H13: 0 | I13: 0 | J13: 0 | K13: 0 | L13: 0
B14: % Gross Margin | C14: =C13/C9 ->  | D14: =D13/D9 -> 
B15: Operating Expenses
B16: % of Revenues | C16: =C15/C9 ->  | D16: =D15/D9 ->  | E16: =E15/E9 -> 
B17: Operating Income or EBIT | C17: =C13-C15 -> 0 | D17: =D13-D15 -> 0 | E17: =E13-E15 -> 0 | F17: =F13-F15 -> 0 | G17: =G13-G15 -> 0 | H17: =H13-H15 -> 0 | I17: 0 | J17: 0 | K17: 0 | L17: 0
B18: % Operating Profit Margin | C18: =C17/C9 -> 
B19: Other Expenses (Gains) | C19: =-(C26-C17+C21+C23) -> 0 | D19: 0 | E19: 0 | F19: 0 | G19: 0 | H19: 0 | I19: 0 | J19: 0 | K19: 0 | L19: 0
B20: % of Revenues | C20: =C19/C13 ->  | D20: =D19/D13 ->  | E20: =E19/E13 ->  | G20: =G19/G13 ->  | H20: =H19/H13 -> 
B21: Net Interest Expense (Income)
B22: % of Revenues | C22: =C21/C$9 ->  | D22: =D21/D$9 ->  | E22: =E21/E$9 -> 
B23: Income Tax Expense
B24: % of Revenues | C24: =C23/C$9 ->  | D24: =D23/D$9 ->  | E24: =E23/E$9 ->  | J24: =J23/J$9 ->  | K24: =K23/K$9 -> 
B25: Effective Tax Rate | C25: =C23/(C17-C19-C21) ->  | I25: =I23/(I17-I19-I21) -> 
B26: Net Income
B27: % Net Profit Margin | C27: =C26/C9 -> 
H29: Estimates
B30: Statement of Cash Flow Items | C30: =D30-1 -> 2019 | D30: 2020 | E30: 2021 | F30: =G30-1 -> 2022 | G30: =YEAR(TODAY())-1 -> 2023 | H30: =G30+1 -> 2024 | I30: =H30+1 -> 2025 | J30: 2026 | K30: 2027 | L30: 2028
B31: Depreciation and Amortization
B32: % of Sales | C32: =C31/C$9 ->  | G32: =G31/G$9 ->  | H32: =H31/H$9 -> 
B33: Capital Expenditures
B34: % of Sales | C34: =C33/C$9 ->  | D34: =D33/D$9 ->  | G34: =G33/G$9 ->  | H34: =H33/H$9 -> 
H36: Estimates
B37: Balance Sheet Items | C37: =D37-1 -> 2019 | D37: 2020 | E37: 2021 | F37: =G37-1 -> 2022 | G37: =YEAR(TODAY())-1 -> 2023 | H37: =G37+1 -> 2024 | I37: =H37+1 -> 2025 | J37: 2026 | K37: 2027 | L37: 2028
B38: Total Current Assets
B39: % of Sales | C39: =C38/C$9 -> 
B40: Cash and Equivalents
B41: % of Sales | C41: =C40/C$9 ->  | D41: =D40/D$9 -> 
B42: Accounts payable
B43: % of Sales | C43: =C42/C$9 ->  | D43: =D42/D$9 ->  | E43: =E42/E$9 -> 
B44: Accrued expenses
B45: % of Sales | C45: =C44/C$9 ->  | D45: =D44/D$9 ->  | E45: =E44/E$9 -> 
B46: Other current non-debt liabilities
B47: % of Sales | C47: =C46/C$9 ->  | D47: =D46/D$9 -> 
B48: Net Working Capital | C48: =(C38-C40)-(C42+C44+C46) -> 0 | D48: =(D38-D40)-(D42+D44+D46) -> 0 | E48: 0 | F48: 0 | G48: 0 | H48: =(H38-H40)-(H42+H44+H46) -> 0 | I48: 0 | J48: 0 | K48: 0 | L48: 0
B49: % of Sales | C49: =C48/C$9 ->  | D49: =D48/D$9 -> 
B50: Δ Net Working Capital | D50: =D48-C48 -> 0 | E50: =E48-D48 -> 0 | F50: 0 | G50: =G48-F48 -> 0 | H50: =H48-G48 -> 0 | I50: 0 | J50: 0 | K50: 0 | L50: 0
B51: Debt and Leases - LT, ST, and Current
B52: % of Revenues | C52: =C51/C9 ->  | D52: =D51/D9 -> 
B53: Δ Net Debt | D53: =(D51-D40)-(C51-C40) -> 0 | E53: =(E51-E40)-(D51-D40) -> 0 | F53: 0 | G53: 0 | H53: 0 | I53: 0 | J53: 0 | K53: 0 | L53: 0
H55: Estimates
B56: Other Items | C56: =D56-1 -> 2019 | D56: 2020 | E56: 2021 | F56: =G56-1 -> 2022 | G56: =YEAR(TODAY())-1 -> 2023 | H56: =G56+1 -> 2024 | I56: =H56+1 -> 2025 | J56: 2026 | K56: 2027 | L56: 2028
B57: Marginal Tax Rate
B58: Dividends per Share
B59: % YOY Growth Rate | D59: =(D58-C58)/C58 ->  | E59: =(E58-D58)/D58 -> 
H61: Estimates
B62: Free Cash Flows to the Firm (Unlevered) | D62: =E62-1 -> 2020 | E62: 2021 | F62: =G62-1 -> 2022 | G62: =YEAR(TODAY())-1 -> 2023 | H62: =G62+1 -> 2024 | I62: =H62+1 -> 2025 | J62: 2026 | K62: 2027 | L62: 2028
B63: EBIT × (1-t) | D63: =D17*(1-D57) -> 0 | E63: 0 | F63: 0 | G63: 0 | H63: 0 | I63: 0 | J63: 0 | K63: 0 | L63: 0
B64: add Depreciation and Amortization | D64: =D31 -> 0 | E64: =E31 -> 0 | F64: 0 | G64: 0 | H64: 0 | I64: 0 | J64: 0 | K64: 0 | L64: 0
B65: less Capital Expenditures | D65: =D33 -> 0 | E65: 0 | F65: 0 | G65: 0 | H65: 0 | I65: 0 | J65: 0 | K65: 0 | L65: 0
B66: less Change in NWC | D66: =D50 -> 0 | E66: 0 | F66: 0 | G66: 0 | H66: 0 | I66: 0 | J66: 0 | K66: 0 | L66: 0
B67: FCFF (Unlevered) | D67: =D63+D64-D65-D66 -> 0 | E67: 0 | F67: 0 | G67: 0 | H67: 0 | I67: 0 | J67: 0 | K67: 0 | L67: 0
B68: YOY Growth Rate % | E68: =(E67-D67)/D67 ->  | H68: =(H67-G67)/G67 ->  | I68: =(I67-H67)/H67 -> 
H70: Estimates
B71: Free Cash Flows to Equity (Levered) | D71: =E71-1 -> 2020 | E71: 2021 | F71: =G71-1 -> 2022 | G71: =YEAR(TODAY())-1 -> 2023 | H71: =G71+1 -> 2024 | I71: =H71+1 -> 2025 | J71: 2026 | K71: 2027 | L71: 2028
B72: FCFF | D72: =D67 -> 0 | E72: =E67 -> 0 | F72: 0 | G72: 0 | H72: =H67 -> 0 | I72: 0 | J72: 0 | K72: 0 | L72: 0
B73: less Interest Expense × (1-t) | D73: =D21*(1-D57) -> 0 | E73: 0 | F73: 0 | G73: 0 | H73: 0 | I73: 0 | J73: 0 | K73: 0 | L73: 0
B74: add Change in Net Debt | D74: =D53 -> 0 | E74: =E53 -> 0 | F74: 0 | G74: 0 | H74: =H53 -> 0 | I74: 0 | J74: 0 | K74: 0 | L74: 0
B75: FCFE (Levered) | D75: =D72-D73+D74 -> 0 | E75: 0 | F75: 0 | G75: =G72-G73+G74 -> 0 | H75: =H72-H73+H74 -> 0 | I75: =I72-I73+I74 -> 0 | J75: 0 | K75: 0 | L75: 0
B76: YOY Growth Rate % | E76: =(E75-D75)/D75 ->  | H76: =(H75-G75)/G75 ->  | I76: =(I75-H75)/H75 -> 
B79: Inputs and Assumptions
B81: Expected Return of the Market | E81: Total Debt | F81: =G51 -> 0 | H81: EBITDA (Current Year) | I81: =G17+G64 -> 0 | K81: Terminal Growth
B82: Beta | E82: Unlevered Beta | F82: =C82/(1+(F84*(1-F86))) -> 0 | H82: EBITDA (Terminal Year) | I82: =L17+L64 -> 0 | K82: D/D+E
B83: Risk-free Rate | E83: Relevered Beta | F83: =F82*(1+(F85*(1-F86))) -> 0 | H83: Enterprise Value | K83: E/D+E
B84: Required Return by CAPM | C84: =C83+C82*(C81-C83) -> 0 | E84: D/E | H84: EV/EBITDA (Current Year) | I84: =I83/I81 ->  | K84: Cost of Debt
B85: Shares Outstanding | E85: Target D/E | H85: EV/EBITDA (Terminal Year) | K85: Cost of Equity | L85: =C83+F83*(C81-C83) -> 0
B86: Current Stock Price | C86: =D6 -> 0 | E86: Marginal Tax Rate | H86: Terminal Val., Exit Mult. | I86: =I82*I85 -> 0 | K86: WACC | L86: =L83*L85+L82*L84*(1-F86) -> 0
B89: Free Cash Flows to the Firm (Unlevered): Perpetual Growth
C90: 1 | D90: 2 | E90: 3 | F90: 4 | G90: 5
C91: =H8 -> 2024 | D91: =I8 -> 2025 | E91: 2026 | F91: 2027 | G91: 2028
B92: FCFF | C92: =H67 -> 0 | D92: =I67 -> 0 | E92: =J67 -> 0 | F92: =K67 -> 0 | G92: =L67 -> 0
B93: Terminal Value (FCFF) | G93: =(L67*(1+L81))/($L$86-L81) -> 
B94: PV of Cash Flow | C94: =SUM(C92:C93)/(1+$L$86)^C90 -> 0 | D94: =SUM(D92:D93)/(1+$L$86)^D90 -> 0 | E94: =SUM(E92:E93)/(1+$L$86)^E90 -> 0 | F94: =SUM(F92:F93)/(1+$L$86)^F90 -> 0 | G94: =SUM(G92:G93)/(1+$L$86)^G90 -> 
B95: Sum of PV of Cash Flows | C95: =SUM(C94:G94) -> 
B96: Total Debt | C96: =-F81 -> 0
B97: Equity Value | C97: =C95+C96 -> 
B98: Shares Outstanding | C98: =C85 -> 0 | F98: Current Price | G98: =C86 -> 0
B99: Estimate of Value | C99: =C97/C98 ->  | F99: Premium to Current | G99: =C99/G98-1 -> 
C102: Sensitivity Table
C103: Terminal Growth Rate
C104: =D104-0.0025 -> -0.005 | D104: =E104-0.0025 -> -0.0025 | E104: =L81 -> 0 | F104: =E104+0.0025 -> 0.0025 | G104: =F104+0.0025 -> 0.005
B105: =B106-0.005 -> -0.01 | C105: =(NPV($B105,$C$92,$D$92,$E$92,$F$92,$G$92+(($G$92*(1+C$104)/($B105-C$104))))-$F$81)/$C$98 -> 
B106: =B107-0.005 -> -0.005
B107: =L86 -> 0
B108: =B107+0.005 -> 0.005
B109: =B108+0.005 -> 0.01
B112: Free Cash Flows to the Firm (Unlevered): Exit Multiple
C113: 1 | D113: 2 | E113: 3 | F113: 4 | G113: 5
C114: =H8 -> 2024 | D114: =I8 -> 2025 | E114: 2026 | F114: 2027 | G114: 2028
B115: FCFF | C115: =H67 -> 0 | D115: =I67 -> 0 | E115: 0 | F115: 0 | G115: 0
B116: Terminal Value (Exit Mult.) | G116: =I86 -> 0
B117: PV of Cash Flow | C117: =SUM(C115:C116)/(1+$L$86)^C113 -> 0 | D117: =SUM(D115:D116)/(1+$L$86)^D113 -> 0 | E117: =SUM(E115:E116)/(1+$L$86)^E113 -> 0 | F117: =SUM(F115:F116)/(1+$L$86)^F113 -> 0 | G117: =SUM(G115:G116)/(1+$L$86)^G113 -> 0
B118: Sum of PV of Cash Flows | C118: =SUM(C117:G117) -> 0
B119: Total Debt | C119: =-F81 -> 0
B120: Equity Value | C120: =C118+C119 -> 0
B121: Shares Outstanding | C121: =C85 -> 0 | F121: Current Price | G121: =C86 -> 0
B122: Estimate of Value | C122: =C120/C121 ->  | F122: Premium to Current | G122: =C122/G121-1 -> 
C125: Sensitivity Table
C126: Exit Multiple
C127: =D127-1 -> -2 | D127: =E127-1 -> -1 | E127: =I85 -> 0 | F127: =E127+1 -> 1 | G127: =F127+1 -> 2
B128: =B129-0.005 -> -0.01 | C128: =(NPV($B128,$C$115,$D$115,$E$115,$F$115,$G$115+($I$82*C$127))-$F$81)/$C$121 -> 
B129: =B130-0.005 -> -0.005
B130: =L86 -> 0
B131: =B130+0.005 -> 0.005
B132: =B131+0.005 -> 0.01
B135: Free Cash Flows to Equity (Levered)
C136: 1 | D136: 2 | E136: 3 | F136: 4 | G136: 5
C137: =H30 -> 2024 | D137: =I30 -> 2025 | E137: 2026 | F137: 2027 | G137: =L30 -> 2028
B138: FCFE | C138: =H75 -> 0 | D138: =I75 -> 0 | E138: =J75 -> 0 | F138: =K75 -> 0 | G138: =L75 -> 0
B139: Terminal Value (FCFE) | G139: =(L75*(1+L81))/($L$85-L81) -> 
B140: PV of Cash Flow | C140: =SUM(C138:C139)/(1+$L$85)^C136 -> 0 | D140: =SUM(D138:D139)/(1+$L$85)^D136 -> 0 | E140: =SUM(E138:E139)/(1+$L$85)^E136 -> 0 | F140: =SUM(F138:F139)/(1+$L$85)^F136 -> 0 | G140: =SUM(G138:G139)/(1+$L$85)^G136 -> 
B141: Sum of PV of Cash Flows | C141: =SUM(C140:G140) -> 
B142: Shares Outstanding | C142: =C85 -> 0 | F142: Current Price | G142: =C86 -> 0
B143: Estimate of Value | C143: =C141/C142 ->  | F143: Premium to Current | G143: =C143/G142-1 -> 
C146: Sensitivity Table
C147: Terminal Growth Rate
C148: =D148-0.0025 -> -0.005 | D148: =E148-0.0025 -> -0.0025 | E148: =L81 -> 0 | F148: =E148+0.0025 -> 0.0025 | G148: =F148+0.0025 -> 0.005
B149: =B150-0.005 -> -0.01 | C149: =(NPV($B149,$C$138,$D$138,$E$138,$F$138,$G$138+(($G$138*(1+C$148)/($B149-C$148)))))/$C$142 -> 
B150: =B151-0.005 -> -0.005
B151: =L85 -> 0
B152: =B151+0.005 -> 0.005
B153: =B152+0.005 -> 0.01
B156: Dividend Discount Model
C157: 1 | D157: 2 | E157: 3 | F157: 4 | G157: 5
C158: =H30 -> 2024 | D158: =I30 -> 2025 | E158: 2026 | F158: 2027 | G158: 2028
B159: Dividends | C159: =H58 -> 0 | D159: =I58 -> 0 | E159: =J58 -> 0 | F159: =K58 -> 0 | G159: =L58 -> 0
B160: Terminal Value | G160: =(G159*(1+L81))/(C84-L81) -> 
B161: PV of Cash Flow | C161: =SUM(C159:C160)/(1+$C$84)^C157 -> 0 | D161: =SUM(D159:D160)/(1+$C$84)^D157 -> 0 | E161: =SUM(E159:E160)/(1+$C$84)^E157 -> 0 | F161: =SUM(F159:F160)/(1+$C$84)^F157 -> 0 | G161: =SUM(G159:G160)/(1+$C$84)^G157 -> 
F163: Current Price | G163: =C86 -> 0
B164: Estimate of Value | C164: =SUM(C161:G161) ->  | F164: Premium to Current | G164: =C164/G163-1 -> 
C167: Sensitivity Table
C168: Terminal Growth Rate
C169: =D169-0.0025 -> -0.005 | D169: =E169-0.0025 -> -0.0025 | E169: =L81 -> 0 | F169: =E169+0.0025 -> 0.0025 | G169: =F169+0.0025 -> 0.005
B170: =B171-0.005 -> -0.01 | C170: =(NPV($B170,$C$159,$D$159,$E$159,$F$159,$G$159+(($G$159*(1+C$169)/($B170-C$169))))) -> 0 | D170: 0 | E170: 0 | F170: 0 | G170: 0
B171: =B172-0.005 -> -0.005 | D171: 0 | E171: 0 | F171: 0 | G171: 0
B172: =$C$84 -> 0 | C172: 0 | D172: 0 | F172: 0 | G172: 0
B173: =B172+0.005 -> 0.005 | C173: 0 | D173: 0 | E173: 0 | F173: 0
B174: =B173+0.005 -> 0.01 | C174: 0 | D174: 0 | E174: 0 | F174: 0 | G174: 0
